bitfinex/quotes_SOLUSD_20230112
["timestamp","ask_amount","ask_price","bid_price","bid_amount"]
[1673556911969,24.103613,16.614,16.6,18.75725104]
[1673556912170,45.15,16.613,16.602,44.06708449]
[1673556912380,24.103613,16.614,16.603,17.0]
[1673556912602,24.103613,16.614,16.603,18.75725104]
[1673556912814,24.103613,16.614,16.604,55.42041782]
[1673556913027,24.103613,16.614,16.605,65.17]
[1673556913343,0.003613,16.614,16.606,73.38041782]
[1673556913548,0.003613,16.614,16.607,66.13]
[1673556913743,0.003613,16.614,16.608,17.96]
[1673556913952,0.003613,16.614,16.609,66.12]
[1673556914304,30.0,16.63,16.616,0.06]
[1673556914497,30.0,16.63,16.62,83.47]
[1673556914703,30.0,16.63,16.621,45.13]
[1673556914896,30.0,16.63,16.621,89.89217689]
[1673556915108,30.0,16.63,16.621,63.51942793]
[1673556915334,30.0,16.63,16.622,48.71876887]
[1673556915527,65.11,16.629,16.616,0.06]
[1673556915853,20.0,16.628,16.616,0.06]
[1673556916069,45.11,16.627,16.616,0.06]
[1673556916477,20.0,16.628,16.616,0.06]
[1673556916685,30.0,16.63,16.62,16.66]
[1673556916911,30.0,16.63,16.62,83.48]
[1673556917126,30.0,16.63,16.621,63.88725104]
[1673556917315,30.0,16.63,16.621,18.75725104]
[1673556917525,30.0,16.63,16.622,63.88725104]
[1673556917735,20.0,16.638,16.624,20.0]
[1673556917962,20.0,16.638,16.63,16.51]
[1673556918283,45.07,16.642,16.63,16.51]
[1673556918599,44.85,16.649,16.632,20.0]
[1673556918783,20.0,16.649,16.633,45.1]
[1673556918997,20.0,16.649,16.631,18.75725104]
[1673556918998,45.06,16.648,16.631,113.21336658]
[1673556919209,45.06,16.648,16.631,18.75725104]
[1673556919439,20.0,16.647,16.632,49.35611554]
[1673556919643,45.06,16.646,16.625,18.75725104]
[1673556919890,20.0,16.645,16.62,83.39]
[1673556920193,45.07,16.644,16.621,18.75725104]
[1673556920608,45.07,16.644,16.622,45.13]
[1673556920609,20.0,16.643,16.622,45.13]
[1673556920806,65.07,16.642,16.622,45.13]
[1673556921010,20.0,16.641,16.621,63.88725104]
[1673556921239,45.08,16.64,16.623,18.75725104]
[1673556921561,20.0,16.639,16.624,45.12]
[1673556921747,20.0,16.639,16.623,18.75725104]
[1673556921959,20.0,16.639,16.625,18.75725104]
[1673556922166,62.08,16.638,16.621,94.48611554]
[1673556922483,45.08,16.638,16.62,16.75]
[1673556922696,17.0,16.637,16.62,16.75]
[1673556922926,45.09,16.636,16.62,16.75]
[1673556923118,17.0,16.635,16.62,16.75]
[1673556923445,45.09,16.634,16.62,35.50725104]
[1673556923670,20.0,16.637,16.62,16.75]
[1673556923851,45.09,16.636,16.62,16.75]
[1673556924697,20.0,16.635,16.62,16.75]
[1673556925026,45.09,16.634,16.614,63.96725104]
[1673556925334,45.09,16.634,16.614,0.06]
[1673556925737,20.0,16.633,16.614,0.06]
[1673556925957,45.1,16.632,16.614,0.06]
[1673556926185,45.1,16.632,16.615,49.35611554]
[1673556926372,17.0,16.631,16.616,49.41611554]
[1673556926576,20.0,16.629,16.617,20.0]
[1673556926826,45.11,16.628,16.616,0.06]
[1673556927022,20.0,16.629,16.616,0.06]
[1673556927343,17.0,16.628,16.616,0.06]
[1673556927525,45.11,16.627,16.616,0.06]
[1673556927734,37.0,16.626,16.616,0.06]
[1673556927944,45.12,16.625,16.616,0.06]
[1673556928149,20.0,16.629,16.616,0.06]
[1673556929007,45.11,16.628,16.616,0.06]
[1673556929224,45.11,16.628,16.607,45.17]
[1673556929439,17.0,16.627,16.601,45.18]
[1673556929627,45.12,16.626,16.607,20.0]
[1673556929833,17.0,16.625,16.607,20.0]
[1673556930047,45.12,16.624,16.603,45.18]
[1673556930256,17.0,16.623,16.604,20.0]
[1673556930487,45.13,16.622,16.604,20.0]
[1673556930687,17.0,16.621,16.604,20.0]
[1673556930900,45.13,16.62,16.605,45.17]
[1673556931103,17.0,16.619,16.604,38.75725104]
[1673556931318,45.14,16.618,16.604,38.75725104]
[1673556931519,65.14,16.618,16.605,63.92725104]
[1673556931829,20.0,16.629,16.61,83.16]
[1673556932159,20.0,16.629,16.611,83.91725104]
[1673556932579,20.0,16.629,16.612,18.75725104]
[1673556932780,20.0,16.629,16.611,45.16]
[1673556932781,45.11,16.628,16.611,45.16]
[1673556932997,45.11,16.628,16.612,18.75725104]
[1673556933218,45.11,16.628,16.612,68.11336658]
[1673556933622,45.11,16.628,16.613,49.35611554]
[1673556933833,45.11,16.628,16.602,45.18]
[1673556933834,20.0,16.627,16.614,45.15]
[1673556934058,45.09,16.634,16.611,45.16]
[1673556934257,20.0,16.635,16.615,20.0]
[1673556934464,20.0,16.639,16.62,20.53]
[1673556934688,45.09,16.636,16.621,45.13]
[1673556935205,45.09,16.636,16.616,45.14]
[1673556935417,45.09,16.636,16.617,20.0]
[1673556935631,20.0,16.635,16.617,20.0]
[1673556935836,45.09,16.634,16.612,45.15]
[1673556936041,20.0,16.633,16.612,45.15]
[1673556936263,45.1,16.632,16.611,45.16]
[1673556936477,17.0,16.631,16.604,45.18]
[1673556936663,85.1,16.63,16.603,45.18]
[1673556936999,17.0,16.629,16.603,45.18]
[1673556937319,45.09,16.634,16.61,41.1]
[1673556937522,20.0,16.635,16.611,45.16]
[1673556937841,45.09,16.634,16.612,20.0]
[1673556938033,20.0,16.633,16.613,45.15]
[1673556938244,45.1,16.632,16.611,45.16]
[1673556938457,20.0,16.631,16.61,20.56]
[1673556938788,45.1,16.63,16.611,45.16]
[1673556939198,45.1,16.63,16.604,45.18]
[1673556939732,20.0,16.631,16.605,20.0]
[1673556939949,17.0,16.63,16.606,35.17]
[1673556940138,62.1,16.63,16.606,35.17]
[1673556940583,62.1,16.63,16.608,20.0]
[1673556940887,45.1,16.63,16.609,45.16]
[1673556941083,45.1,16.63,16.608,45.16]
[1673556941287,45.1,16.63,16.606,45.17]
[1673556941504,20.0,16.629,16.606,45.17]
[1673556941723,45.11,16.628,16.606,45.17]
[1673556942128,45.09,16.634,16.61,20.56]
[1673556942343,45.08,16.638,16.611,64.08]
[1673556942549,20.0,16.637,16.612,20.0]
[1673556942775,65.08,16.639,16.62,20.56]
[1673556942969,45.08,16.639,16.621,45.13]
[1673556943182,20.0,16.649,16.621,45.13]
[1673556943183,20.0,16.649,16.622,37.0]
[1673556943424,20.0,16.649,16.623,45.12]
[1673556943632,20.0,16.649,16.624,37.0]
[1673556943843,20.0,16.649,16.625,62.12]
[1673556944046,20.0,16.649,16.626,20.0]
[1673556944257,20.0,16.649,16.627,45.11]
[1673556944468,20.0,16.645,16.626,20.0]
[1673556944682,20.0,16.649,16.627,63.86725104]
[1673556944904,20.0,16.649,16.628,38.75725104]
[1673556945215,45.04,16.653,16.63,20.39]
[1673556945414,24.046703,16.654,16.632,20.0]
[1673556945652,19.046703,16.654,16.633,82.1]
[1673556945825,19.046703,16.654,16.64,20.56]
[1673556946072,19.046703,16.654,16.641,82.07]
[1673556946459,20.0,16.664,16.642,20.0]
[1673556946773,20.0,16.666,16.643,82.07]
[1673556946985,24.016001,16.675,16.643,119.58450208]
[1673556947204,44.99,16.674,16.65,20.56]
[1673556947417,20.0,16.673,16.651,45.05]
[1673556947652,44.99,16.672,16.652,20.0]
[1673556947830,44.99,16.672,16.653,45.04]
[1673556948039,20.0,16.673,16.654,20.0]
[1673556948246,20.0,16.673,16.655,45.04]
[1673556948473,24.016001,16.675,16.656,20.0]
[1673556948667,24.016001,16.675,16.657,45.03]
[1673556948876,24.016001,16.675,16.66,20.56]
[1673556949089,24.016001,16.675,16.661,45.02]
[1673556949297,24.016001,16.675,16.661,65.02]
[1673556949526,20.0,16.684,16.663,20.0]
[1673556949723,20.0,16.684,16.664,45.01]
[1673556949927,44.96,16.683,16.659,45.03]
[1673556950158,44.96,16.683,16.652,45.05]
[1673556950374,20.0,16.682,16.653,20.0]
[1673556950680,44.97,16.681,16.654,45.04]
[1673556950893,17.0,16.68,16.655,20.0]
[1673556951104,44.97,16.679,16.656,45.03]
[1673556951417,20.0,16.677,16.656,45.03]
[1673556951615,61.98,16.676,16.655,20.0]
[1673556951827,564.8,16.675,16.632,29.99226955]
[1673556952032,564.8,16.675,16.617,233.75245602]
[1673556952033,181.9,16.648,16.617,127.81717444]
[1673556952250,20.36,16.63,16.607,105.78835562]
[1673556952455,62.11,16.629,16.607,140.69835562]
[1673556952674,65.05423,16.629,16.618,567.75944157]
[1673556952980,2.94423,16.628,16.607,34.91]
[1673556953215,2.94423,16.628,16.61,20.43]
[1673556953410,2.94423,16.628,16.612,20.0]
[1673556953723,2.94423,16.628,16.613,22.29]
[1673556953939,2.94423,16.628,16.6,229.99226955]
[1673556954138,97.69378886,16.627,16.601,20.0]
[1673556954333,37.0,16.626,16.601,20.0]
[1673556954538,45.12,16.625,16.6,229.99226955]
[1673556954761,20.0,16.623,16.6,229.99226955]
[1673556954972,65.07423,16.622,16.6,229.99226955]
[1673556955301,2.94423,16.621,16.601,20.0]
[1673556955695,2.94423,16.621,16.6,229.99226955]
[1673556955696,22.94423,16.621,16.6,229.99226955]
[1673556955919,17.0,16.62,16.6,229.99226955]
[1673556956241,2.94423,16.619,16.6,229.99226955]
[1673556957380,2.94423,16.619,16.601,20.0]
[1673556957710,2.94423,16.619,16.601,38.75725104]
[1673556958247,2.94423,16.619,16.602,20.0]
[1673556958558,2.94423,16.619,16.603,37.0]
[1673556958873,2.94423,16.619,16.604,20.0]
[1673556959297,2.94423,16.619,16.605,20.0]
[1673556959489,2.94423,16.619,16.606,20.0]
[1673556959702,2.94423,16.619,16.603,20.0]
[1673556960039,2.94423,16.619,16.601,20.0]
[1673556961196,2.94423,16.619,16.602,20.0]
[1673556961412,2.94423,16.619,16.603,17.0]
[1673556961921,2.94423,16.619,16.604,20.0]
[1673556962128,2.94423,16.619,16.602,20.0]
[1673556962736,2.94423,16.619,16.601,20.0]
[1673556963176,2.94423,16.619,16.6,29.99226955]
[1673556963384,45.14,16.618,16.6,29.99226955]
[1673556963820,19.94423,16.617,16.6,29.99226955]
[1673556964127,48.08423,16.616,16.6,29.99226955]
[1673556964336,37.0,16.615,16.6,29.99226955]
[1673556964551,45.15,16.614,16.6,29.99226955]
[1673556964767,20.43,16.61,16.6,29.99226955]
[1673556965076,20.0,16.608,16.571,115.8263]
[1673556965272,20.0,16.608,16.572,20.0]
[1673556965273,20.59,16.6,16.572,20.0]
[1673556965485,45.19,16.599,16.566,18.75725104]
[1673556965697,65.13423,16.599,16.566,18.75725104]
[1673556965907,2.94423,16.598,16.567,18.75725104]
[1673556966117,45.19,16.597,16.568,20.0]
[1673556966328,45.19,16.597,16.567,18.75725104]
[1673556966329,17.0,16.596,16.567,18.75725104]
[1673556966546,20.39,16.59,16.561,114.4647]
[1673556966758,62.22,16.589,16.559,18.75725104]
[1673556966958,65.16423,16.589,16.559,37.51450208]
[1673556967165,2.94423,16.588,16.56,40.59]
[1673556967504,19.94423,16.588,16.57,20.59]
[1673556967907,19.94423,16.588,16.561,18.75725104]
[1673556968329,2.94423,16.588,16.562,20.0]
[1673556968540,2.94423,16.588,16.57,20.49]
[1673556968831,2.94423,16.588,16.571,20.0]
[1673556969049,2.94423,16.588,16.56,61.52]
[1673556969050,2.94423,16.588,16.56,20.79]
[1673556969281,45.22,16.587,16.557,18.75725104]
[1673556969691,2.94423,16.586,16.557,18.75725104]
[1673556969908,45.23,16.585,16.557,18.75725104]
[1673556970223,45.23,16.585,16.55,121.55518924]
[1673556970224,20.53,16.58,16.55,121.55518924]
[1673556970444,82.24,16.579,16.548,108.72771436]
[1673556970698,85.18423,16.579,16.548,108.72771436]
[1673556970840,2.94423,16.578,16.55,119.88244028]
[1673556971085,2.94423,16.578,16.551,20.0]
[1673556971086,45.25,16.577,16.551,20.0]
[1673556971257,17.0,16.576,16.551,38.75725104]
[1673556971466,19.94423,16.576,16.551,18.75725104]
[1673556971681,48.19423,16.575,16.542,103.85269057]
[1673556971908,17.0,16.574,16.548,108.72771436]
[1673556972124,45.26,16.573,16.55,101.12518924]
[1673556972337,48.20423,16.573,16.55,121.71518924]
[1673556972545,2.94423,16.572,16.551,18.75725104]
[1673556972738,2.94423,16.572,16.55,101.12518924]
[1673556973155,2.94423,16.572,16.551,20.0]
[1673556973379,19.94423,16.572,16.551,20.0]
[1673556973594,19.94423,16.572,16.551,38.75725104]
[1673556973800,2.94423,16.572,16.551,38.75725104]
[1673556974009,2.94423,16.572,16.552,18.75725104]
[1673556974326,2.94423,16.572,16.56,20.59]
[1673556974546,2.94423,16.572,16.553,20.0]
[1673556974744,2.94423,16.572,16.553,40.0]
[1673556975253,2.94423,16.572,16.554,20.0]
[1673556976206,2.94423,16.572,16.551,20.0]
[1673556976843,2.94423,16.572,16.552,17.0]
[1673556977053,2.94423,16.572,16.553,20.0]
[1673556977265,2.94423,16.572,16.554,20.0]
[1673556977457,2.94423,16.572,16.555,17.96]
[1673556977668,20.0,16.581,16.56,20.49]
[1673556977877,2.94423,16.58,16.56,20.49]
[1673556978229,2.94423,16.58,16.561,20.0]
[1673556978527,2.94423,16.58,16.562,17.0]
[1673556978745,2.94423,16.58,16.56,20.49]
[1673556978934,45.24,16.579,16.556,20.0]
[1673556979266,22.94423,16.578,16.554,20.0]
[1673556979451,65.19423,16.577,16.554,20.0]
[1673556979888,2.94423,16.576,16.554,20.0]
[1673556980101,45.25,16.575,16.554,20.0]
[1673556980289,2.94423,16.574,16.554,20.0]
[1673556980498,2.94423,16.574,16.555,20.0]
[1673556980734,2.94423,16.574,16.556,37.96]
[1673556981042,20.0,16.581,16.561,20.0]
[1673556981253,20.0,16.583,16.562,1.92]
[1673556981467,45.24,16.582,16.561,20.0]
[1673556981650,20.0,16.581,16.562,17.0]
[1673556982079,20.0,16.581,16.563,20.0]
[1673556982306,2.94423,16.582,16.564,17.0]
[1673556982489,2.94423,16.582,16.565,20.0]
[1673556982711,2.94423,16.582,16.557,34.84015677]
[1673556982712,45.24,16.581,16.557,34.84015677]
[1673556982930,22.94423,16.58,16.558,20.0]
[1673556983147,48.18423,16.579,16.559,20.0]
[1673556983347,2.94423,16.578,16.559,20.0]
[1673556983661,19.94423,16.578,16.559,20.0]
[1673556983861,2.94423,16.578,16.56,17.0]
[1673556984070,2.94423,16.578,16.561,20.0]
[1673556984283,45.23,16.585,16.562,17.0]
[1673556984609,22.94423,16.584,16.562,17.0]
[1673556984819,48.17423,16.583,16.562,17.0]
[1673556985025,20.0,16.581,16.562,17.0]
[1673556985343,20.0,16.581,16.557,20.0]
[1673556985344,48.18423,16.58,16.557,20.0]
[1673556985547,22.94423,16.579,16.558,20.0]
[1673556985760,48.19423,16.578,16.558,20.0]
[1673556985956,2.94423,16.577,16.558,20.0]
[1673556986167,2.94423,16.577,16.559,18.75725104]
[1673556986699,2.94423,16.577,16.56,124.43]
[1673556986913,45.21,16.593,16.56,141.43]
[1673556987124,2.94423,16.591,16.561,20.0]
[1673556987344,2.94423,16.591,16.562,1.92]
[1673556987545,2.94423,16.591,16.562,55.75725104]
[1673556987749,65.8,16.59,16.562,55.75725104]
[1673556987953,22.94423,16.589,16.563,38.75725104]
[1673556988174,133.7788,16.596,16.564,21.92]
[1673556988175,48.16423,16.588,16.564,21.92]
[1673556988388,2.94423,16.587,16.565,17.0]
[1673556988592,2.94423,16.587,16.566,21.92]
[1673556988793,2.94423,16.587,16.567,37.0]
[1673556989005,2.94423,16.587,16.567,18.75725104]
[1673556989325,45.22,16.586,16.56,20.49]
[1673556989548,2.94423,16.585,16.557,38.75725104]
[1673556989737,45.23,16.584,16.557,38.75725104]
[1673556989947,22.94423,16.583,16.557,38.75725104]
[1673556990158,48.18423,16.582,16.557,38.75725104]
[1673556990391,2.94423,16.581,16.557,38.75725104]
[1673556990590,2.94423,16.581,16.558,18.92]
[1673556990792,2.94423,16.581,16.56,20.59]
[1673556991002,2.94423,16.581,16.562,20.0]
[1673556991545,2.94423,16.581,16.563,18.75725104]
[1673556992161,2.94423,16.581,16.551,136.5455]
[1673556992374,50.67,16.58,16.558,20.0]
[1673556992581,39.94423,16.579,16.558,18.75725104]
[1673556992795,48.19423,16.578,16.558,18.75725104]
[1673556992992,19.94423,16.577,16.559,18.75725104]
[1673556993203,48.19423,16.576,16.554,20.0]
[1673556993523,19.94423,16.575,16.556,20.0]
[1673556993725,2.94423,16.574,16.557,37.0]
[1673556993945,2.94423,16.574,16.558,20.0]
[1673556994170,2.94423,16.574,16.558,18.75725104]
[1673556995842,45.26,16.573,16.558,18.75725104]
[1673556996039,45.26,16.573,16.543,102.32994099]
[1673556996040,20.39,16.57,16.543,102.32994099]
[1673556996366,65.21423,16.569,16.548,108.72771436]
[1673556996574,22.94423,16.568,16.548,108.72771436]
[1673556996783,65.22423,16.567,16.55,101.12518924]
[1673556996993,2.94423,16.566,16.55,101.12518924]
[1673556997203,45.28,16.565,16.551,18.75725104]
[1673556997403,19.94423,16.564,16.551,18.75725104]
[1673556997620,48.23423,16.563,16.551,18.75725104]
[1673556997936,19.94423,16.562,16.551,18.75725104]
[1673556998294,2.94423,16.562,16.551,18.75725104]
[1673556998493,17.0,16.561,16.551,18.75725104]
[1673556998703,19.94423,16.561,16.551,18.75725104]
[1673556999024,2.94423,16.561,16.551,18.75725104]
[1673556999208,20.39,16.57,16.551,22.29925104]
[1673556999209,45.28,16.567,16.551,22.29925104]
[1673556999422,45.27,16.571,16.552,20.0]
[1673556999649,2.94423,16.57,16.553,3.541]
[1673556999853,2.94423,16.57,16.554,20.0]
[1673557000066,2.94423,16.57,16.555,20.541]
[1673557000272,2.94423,16.57,16.556,20.0]
[1673557000480,2.94423,16.57,16.558,20.0]
[1673557000804,2.94423,16.57,16.559,22.29725104]
[1673557001332,2.94423,16.57,16.559,18.75725104]
[1673557001731,2.94423,16.57,16.56,18.75725104]
[1673557003020,2.94423,16.57,16.558,20.0]
[1673557003208,45.24,16.58,16.559,40.275]
[1673557003538,45.23,16.585,16.56,20.59]
[1673557003851,22.94423,16.584,16.562,20.0]
[1673557004071,48.17423,16.583,16.563,23.274]
[1673557004259,2.94423,16.582,16.563,42.03125104]
[1673557004469,2.94423,16.582,16.564,18.75725104]
[1673557004697,2.94423,16.582,16.565,23.14]
[1673557005122,20.39,16.58,16.559,3.141]
[1673557005314,20.39,16.58,16.554,20.0]
[1673557005315,65.18423,16.579,16.56,18.75725104]
[1673557005523,22.94423,16.578,16.56,18.75725104]
[1673557005734,20.0,16.576,16.549,3.143]
[1673557005945,65.19423,16.575,16.553,18.75725104]
[1673557006150,2.94423,16.574,16.555,20.0]
[1673557006372,19.94423,16.574,16.556,3.142]
[1673557006585,2.94423,16.574,16.556,21.89925104]
[1673557006800,20.0,16.572,16.548,3.144]
[1673557007000,19.94423,16.571,16.554,18.75725104]
[1673557007204,2.94423,16.57,16.555,20.0]
[1673557007415,2.94423,16.57,16.555,23.142]
[1673557007626,2.94423,16.57,16.556,18.75725104]
[1673557007836,2.94423,16.57,16.557,3.378]
[1673557008049,2.94423,16.57,16.556,22.13525104]
[1673557008255,2.94423,16.57,16.558,18.75725104]
[1673557008987,2.94423,16.57,16.555,20.0]
[1673557009199,2.94423,16.57,16.557,18.75725104]
[1673557009423,2.94423,16.57,16.558,20.0]
[1673557009846,2.94423,16.57,16.558,38.75725104]
[1673557010065,2.94423,16.57,16.559,3.379]
[1673557010389,2.94423,16.57,16.56,18.75725104]
[1673557010578,2.94423,16.57,16.561,3.379]
[1673557010789,2.94423,16.57,16.559,3.205]
[1673557011012,2.94423,16.57,16.557,18.75725104]
[1673557011228,2.94423,16.57,16.558,23.206]
[1673557011540,227.17,16.569,16.548,60.28887991]
[1673557011750,22.94423,16.568,16.543,80.28887991]
[1673557011959,65.22423,16.567,16.543,80.28887991]
[1673557012272,2.94423,16.566,16.545,18.75725104]
[1673557012487,45.28,16.565,16.546,3.208]
[1673557012692,19.94423,16.564,16.547,20.0]
[1673557012900,19.94423,16.564,16.548,3.208]
[1673557012901,2.94423,16.563,16.548,3.208]
[1673557013104,2.94423,16.563,16.548,21.96525104]
[1673557014358,2.94423,16.563,16.549,18.75725104]
[1673557014700,2.94423,16.563,16.548,3.208]
[1673557014910,2.94423,16.563,16.548,18.75725104]
[1673557015109,2.94423,16.563,16.549,23.491]
[1673557015322,2.94423,16.563,16.549,3.491]
[1673557015741,2.94423,16.563,16.547,18.75725104]
[1673557015951,2.94423,16.563,16.548,23.491]
[1673557016277,2.94423,16.563,16.549,18.75725104]
[1673557016463,2.94423,16.563,16.55,3.49]
[1673557017933,2.94423,16.563,16.549,3.438]
[1673557019298,20.43,16.56,16.546,18.75725104]
[1673557019513,85.24423,16.559,16.54,3.44]
[1673557019819,85.24423,16.559,16.535,396.6]
[1673557019820,22.94423,16.558,16.536,23.704]
[1673557020035,65.24423,16.557,16.536,23.704]
[1673557020256,2.94423,16.556,16.536,23.704]
[1673557020809,2.94423,16.556,16.538,20.0]
[1673557021003,2.94423,16.556,16.539,3.703]
[1673557021521,22.94423,16.556,16.536,23.704]
[1673557021748,17.0,16.555,16.536,23.704]
[1673557021937,2.94423,16.554,16.536,23.704]
[1673557022146,2.94423,16.554,16.537,20.0]
[1673557022358,2.94423,16.554,16.539,20.0]
[1673557022570,2.94423,16.554,16.54,23.703]
[1673557023620,45.28,16.565,16.541,37.0]
[1673557023832,2.94423,16.564,16.542,23.642]
[1673557024247,2.94423,16.564,16.543,17.0]
[1673557024466,2.94423,16.564,16.545,20.0]
[1673557024695,2.94423,16.564,16.546,23.641]
[1673557025007,2.94423,16.564,16.546,42.39825104]
[1673557025224,2.94423,16.564,16.547,18.75725104]
[1673557025433,2.94423,16.564,16.548,23.64]
[1673557027538,22.94423,16.564,16.548,23.64]
[1673557027716,45.29,16.563,16.543,23.495]
[1673557027940,2.94423,16.562,16.543,3.495]
[1673557028148,20.39,16.56,16.537,3.496]
[1673557028370,48.24423,16.559,16.537,3.496]
[1673557028577,39.94423,16.558,16.537,54.43252575]
[1673557028775,2.94423,16.557,16.538,18.75725104]
[1673557028985,2.94423,16.557,16.539,3.681]
[1673557029212,2.94423,16.557,16.54,20.0]
[1673557029404,2.94423,16.557,16.541,3.68]
[1673557029610,2.94423,16.557,16.541,22.43725104]
[1673557029953,2.94423,16.557,16.542,18.75725104]
[1673557030271,2.94423,16.557,16.543,40.68]
[1673557030474,2.94423,16.557,16.544,20.0]
[1673557030662,65.26,16.572,16.545,42.599]
[1673557030872,2.94423,16.57,16.545,173.76715104]
[1673557031089,45.27,16.569,16.546,18.75725104]
[1673557031311,2.94423,16.568,16.547,23.679]
[1673557031521,22.94423,16.568,16.548,20.0]
[1673557031729,22.94423,16.568,16.549,3.431]
[1673557031945,17.0,16.567,16.549,3.431]
[1673557032148,2.94423,16.566,16.549,23.431]
[1673557032983,2.94423,16.566,16.549,20.0]
[1673557033203,2.94423,16.566,16.546,23.432]
[1673557033416,22.94423,16.566,16.546,23.432]
[1673557033615,17.0,16.565,16.546,42.18925104]
[1673557033829,2.94423,16.564,16.546,42.18925104]
[1673557034449,2.94423,16.564,16.547,20.0]
[1673557034672,2.94423,16.564,16.548,3.416]
[1673557034996,2.94423,16.564,16.548,22.17325104]
[1673557035192,2.94423,16.564,16.549,20.0]
[1673557035406,2.94423,16.564,16.551,20.0]
[1673557035631,2.94423,16.564,16.552,23.415]
[1673557035821,2.94423,16.564,16.552,42.17225104]
[1673557036040,2.94423,16.564,16.553,18.75725104]
[1673557036260,20.0,16.575,16.554,60.414]
[1673557036461,2.94423,16.574,16.554,60.414]
[1673557036674,2.94423,16.574,16.555,18.75725104]
[1673557036882,2.94423,16.574,16.556,3.414]
[1673557037094,2.94423,16.574,16.556,23.414]
[1673557037505,19.94423,16.574,16.556,23.414]
[1673557038460,2.94423,16.574,16.556,23.414]
[1673557039075,2.94423,16.574,16.556,42.17125104]
[1673557039291,2.94423,16.574,16.557,17.0]
[1673557039499,2.94423,16.574,16.558,23.293]
[1673557039731,2.94423,16.574,16.559,20.0]
[1673557039940,2.94423,16.574,16.56,3.293]
[1673557040655,2.94423,16.574,16.558,3.246]
[1673557041298,2.94423,16.574,16.557,3.246]
[1673557041838,2.94423,16.574,16.557,23.246]
[1673557042143,2.94423,16.574,16.558,20.0]
[1673557042362,2.94423,16.574,16.559,3.246]
[1673557042878,2.94423,16.574,16.559,22.00325104]
[1673557043310,2.94423,16.574,16.56,37.0]
[1673557043492,2.94423,16.574,16.561,23.245]
[1673557043708,2.94423,16.574,16.562,20.0]
[1673557043919,45.22,16.586,16.563,20.093]
[1673557044246,2.94423,16.585,16.564,20.0]
[1673557044572,2.94423,16.585,16.565,3.093]
[1673557044778,2.94423,16.585,16.565,38.85025104]
[1673557044964,2.94423,16.585,16.566,38.75725104]
[1673557045176,2.94423,16.585,16.567,3.092]
[1673557045385,2.94423,16.585,16.567,21.84925104]
[1673557045614,2.94423,16.585,16.568,38.75725104]
[1673557045929,2.94423,16.585,16.569,18.75725104]
[1673557046137,2.94423,16.585,16.57,20.0]
[1673557046332,2.94423,16.585,16.569,3.092]
[1673557046760,2.94423,16.585,16.569,18.75725104]